bitfinex-derivatives/quotes_BTCF0:USTF0_20210108
["timestamp","ask_amount","ask_price","bid_price","bid_amount"]
[1610119901353,0.0002,40587.0,40558.0,0.0002194]
[1610119901628,0.0002,40587.0,40559.0,0.0002]
[1610119901848,0.0002,40587.0,40559.0,0.00021942]
[1610119902030,0.0002,40587.0,40574.0,0.13632608]
[1610119902247,0.0002,40581.0,40574.0,0.13632608]
[1610119903232,0.0002,40581.0,40567.0,0.0002]
[1610119903430,0.0002,40587.0,40557.0,0.0002]
[1610119903748,0.0002,40587.0,40557.0,0.00021941]
[1610119903945,0.13632608,40558.0,40553.0,0.00021941]
[1610119904230,0.13632608,40558.0,40552.0,0.13632608]
[1610119904231,0.22904608,40558.0,40552.0,0.13632608]
[1610119904446,0.0002,40587.0,40552.0,0.13632608]
[1610119904734,1.0,40557.0,40553.0,0.0002]
[1610119905031,1.1233,40557.0,40552.0,0.13632608]
[1610119906233,1.1233,40557.0,40553.0,0.00021776]
[1610119906633,0.1233,40557.0,40553.0,0.00021776]
[1610119907533,0.0002,40563.0,40553.0,0.00021776]
[1610119907733,0.13632608,40581.0,40553.0,0.00021776]
[1610119907933,0.13632608,40571.0,40563.0,0.13632608]
[1610119908136,0.23124608,40571.0,40563.0,0.13632608]
[1610119908335,0.23144608,40571.0,40563.0,0.13632608]
[1610119908735,0.23144608,40571.0,40557.0,0.0002]
[1610119909135,0.0002,40570.0,40544.0,0.0002]
[1610119909340,0.0002,40570.0,40544.0,0.00021775]
[1610119909535,0.0002,40570.0,40545.0,0.0002]
[1610119909738,0.0002,40570.0,40540.0,2.37506413]
[1610119909950,0.13632608,40541.0,40525.0,2.64621725]
[1610119910140,0.22201608,40541.0,40525.0,2.64621725]
[1610119910342,0.22201608,40541.0,40531.0,0.0002]
[1610119910738,0.074,40540.0,40513.0,0.13632608]
[1610119910939,0.074,40540.0,40530.0,0.0002]
[1610119911143,0.22201608,40541.0,40513.0,0.13632608]
[1610119911439,0.22201608,40541.0,40531.0,0.0002]
[1610119911839,0.22201608,40541.0,40503.0,2.65588247]
[1610119912043,0.13632608,40504.0,40503.0,2.65588247]
[1610119912241,0.23647608,40504.0,40503.0,2.65588247]
[1610119912450,0.23647608,40504.0,40503.0,0.00021795]
[1610119912642,0.08569,40541.0,40503.0,0.00021795]
[1610119912843,0.08569,40541.0,40502.0,0.00021804]
[1610119913243,0.08569,40541.0,40501.0,0.13632608]
[1610119913543,0.0002,40540.0,40503.0,0.0002]
[1610119913742,0.0002,40540.0,40502.0,0.0002]
[1610119913943,0.13632608,40509.0,40502.0,0.0002]
[1610119914146,0.21341608,40509.0,40504.0,0.0002]
[1610119914547,0.07709,40509.0,40504.0,0.0002]
[1610119914743,0.0744,40508.0,40504.0,0.0002]
[1610119914944,0.0744,40508.0,40501.0,0.13632608]
[1610119915143,0.0744,40508.0,40503.0,0.0002]
[1610119915342,0.07709,40509.0,40504.0,0.0002]
[1610119915742,0.0002,40518.0,40504.0,0.0002]
[1610119916043,0.08569,40541.0,40475.0,2.93923252]
[1610119916044,0.08569,40541.0,40517.0,0.13632608]
[1610119916242,0.00302611,40592.0,40518.0,0.0002]
[1610119916544,1.0,40519.0,40518.0,0.0002]
[1610119916742,1.09516,40519.0,40517.0,0.13632608]
[1610119917446,0.66586,40519.0,40517.0,0.13632608]
[1610119917645,0.09516,40519.0,40517.0,0.13632608]
[1610119917847,0.0002,40525.0,40517.0,0.13632608]
[1610119918045,0.11392,40539.0,40517.0,0.13632608]
[1610119918446,0.0002,40538.0,40518.0,0.0002]
[1610119918649,0.0002,40538.0,40518.0,0.00041786]
[1610119918945,0.09338,40547.0,40523.0,3.6487]
[1610119919145,0.09338,40547.0,40524.0,0.00021778]
[1610119919348,1.0,40617.0,40524.0,0.00021778]
[1610119919547,0.0002,40546.0,40525.0,0.0002]
[1610119919746,0.11852,40573.0,40533.0,2.64109596]
[1610119920046,0.0002,40572.0,40539.0,2.49431064]
[1610119920248,0.0002,40572.0,40534.0,0.0002]
[1610119920249,0.0002,40572.0,40540.0,0.0002]
[1610119920645,0.0002,40572.0,40535.0,0.0002]
[1610119920946,0.0741,40572.0,40536.0,0.0002]
[1610119921148,0.0739,40572.0,40539.0,2.4940376]
[1610119921344,0.0002,40571.0,40540.0,0.0002]
[1610119921545,0.0002,40572.0,40543.0,2.49382074]
[1610119921747,3.3091,40640.0,40543.0,0.11952]
[1610119922046,0.5915,40639.0,40570.0,0.13632608]
[1610119922246,1.5,40638.0,40570.0,0.13632608]
[1610119922448,0.0002,40616.0,40555.0,0.0002]
[1610119922749,0.0002,40607.0,40546.0,0.0002]
[1610119922947,0.0002,40597.0,40536.0,0.0002]
[1610119923146,0.0002,40590.0,40529.0,0.0002]
[1610119923747,0.0002,40590.0,40534.0,0.0002245]
[1610119923948,0.00030072,40596.0,40534.0,0.0002245]
[1610119924149,0.13632608,40588.0,40584.0,0.13632608]
[1610119924351,0.08746,40588.0,40584.0,0.13612608]
[1610119924956,0.08746,40588.0,40558.0,3.0063]
[1610119925149,0.0002,40587.0,40540.0,2.49366714]
[1610119925354,0.0002,40587.0,40541.0,0.0002]
[1610119925653,0.0002,40587.0,40541.0,0.00022442]
[1610119925951,0.08746,40588.0,40530.0,2.49354742]
[1610119926251,0.08746,40588.0,40577.0,0.13632608]
[1610119928153,0.13632608,40579.0,40577.0,0.13632608]
[1610119928354,0.26071608,40579.0,40573.0,0.0002]
[1610119928555,0.0002,40578.0,40552.0,0.0002]
[1610119930157,0.0002,40578.0,40577.0,0.13632608]
[1610119930462,0.0736,40578.0,40577.0,0.13632608]
[1610119930656,0.12439,40579.0,40577.0,0.13632608]
[1610119932861,0.12439,40579.0,40551.0,2.9049]
[1610119933062,0.0002,40578.0,40552.0,0.0002]
[1610119933261,0.0002,40578.0,40477.0,1.5]
[1610119933262,0.0002,40578.0,40542.0,2.49914405]
[1610119933461,0.0002,40578.0,40543.0,0.00042443]
[1610119933762,0.0002,40578.0,40544.0,0.0002]
[1610119934161,0.13632608,40559.0,40555.0,0.13632608]
[1610119934461,0.23231608,40559.0,40555.0,0.13632608]
[1610119934961,0.09619,40559.0,40555.0,0.13632608]
[1610119935762,0.09619,40559.0,40534.0,2.50294226]
[1610119935963,0.0002,40558.0,40538.0,0.0002]
[1610119936164,0.0002,40558.0,40540.0,0.13632608]
[1610119936564,0.0002,40558.0,40541.0,0.0002]
[1610119936966,0.0002,40558.0,40519.0,0.0002]
[1610119937165,0.0002,40558.0,40519.0,0.00042459]
[1610119937366,0.0002,40558.0,40519.0,0.00022459]
[1610119937767,0.0002,40558.0,40520.0,0.0002]
[1610119938168,0.13632608,40543.0,40537.0,0.13632608]
[1610119938366,0.22872608,40543.0,40520.0,0.0002]
[1610119938570,0.22872608,40543.0,40513.0,2.50724885]
[1610119938767,0.22872608,40543.0,40501.0,2.951012]
[1610119938768,0.0002,40542.0,40520.0,0.00042464]
[1610119939172,0.0002,40542.0,40519.0,0.00022466]
[1610119939368,0.0002,40542.0,40520.0,0.0002]
[1610119939567,0.0747,40542.0,40498.0,2.50947068]
[1610119939769,0.0002,40541.0,40519.0,0.0002]
[1610119940167,0.13632608,40520.0,40496.0,2.36288315]
[1610119940468,0.13632608,40520.0,40485.0,2.65824355]
[1610119940469,0.24474608,40520.0,40493.0,2.36382078]
[1610119940671,0.0002,40519.0,40494.0,0.0002]
[1610119941070,0.0002,40519.0,40492.0,2.36378233]
[1610119941270,0.0002,40519.0,40493.0,2.36640181]
[1610119941470,0.0002,40519.0,40493.0,2.36662668]
[1610119941670,0.0002,40519.0,40494.0,0.0002]
[1610119942170,0.13632608,40495.0,40494.0,0.00022485]
[1610119942472,0.1027,40498.0,40491.0,0.00022485]
[1610119942671,0.10842,40520.0,40512.0,0.03342608]
[1610119943870,0.10842,40520.0,40513.0,0.00022479]
[1610119944271,0.10842,40520.0,40519.0,0.13632608]
[1610119945474,0.0002,40523.0,40512.0,0.03342608]
[1610119945674,1.0,40520.0,40512.0,0.03342608]
[1610119945876,1.08992,40520.0,40512.0,0.03342608]
[1610119946278,0.13632608,40513.0,40512.0,0.03342608]
[1610119946476,0.13632608,40513.0,40508.0,0.0002]
[1610119946878,1.08992,40520.0,40494.0,0.0002248]
[1610119947075,1.08992,40520.0,40489.0,2.36481656]
[1610119947076,0.0002,40519.0,40495.0,0.0002]
[1610119947276,0.0002,40519.0,40493.0,0.0002]
[1610119947477,0.0002,40519.0,40492.0,0.0002]
[1610119947677,1.0,40496.0,40492.0,0.0002]
[1610119947879,1.09647,40496.0,40493.0,0.0002]
[1610119948075,1.09647,40496.0,40478.0,2.36490275]
[1610119948277,0.13632608,40493.0,40476.0,2.36505845]
[1610119948479,0.13632608,40493.0,40468.0,2.36425044]
[1610119948676,0.0002,40492.0,40477.0,0.0002]
[1610119948977,0.0002,40492.0,40469.0,0.0002]
[1610119949177,0.0002,40492.0,40468.0,2.36428217]
[1610119949377,0.0002,40495.0,40469.0,0.0002]
[1610119949677,0.0002,40495.0,40470.0,2.36336058]
[1610119949877,0.0002,40495.0,40473.0,2.36323353]
[1610119950076,0.0002,40495.0,40474.0,0.0002]
[1610119950476,0.09647,40496.0,40487.0,0.0002]
[1610119950777,0.0002,40495.0,40472.0,0.0002]
[1610119950978,0.00694985,40568.0,40472.0,0.0002]
[1610119950979,1.50286296,40569.0,40472.0,0.00022486]
[1610119951178,1.50286296,40569.0,40470.0,0.0002]
[1610119951179,1.5,40569.0,40474.0,2.36177764]
[1610119951377,3.7603,40552.0,40474.0,2.36177764]
[1610119951578,1.0,40508.0,40477.0,0.0002]
[1610119951778,0.0002,40507.0,40477.0,2.36144283]
[1610119951976,0.0002,40507.0,40477.0,2.36124283]
[1610119952179,0.0002,40507.0,40500.0,0.13632608]
[1610119952477,1.11474,40508.0,40500.0,0.13632608]
[1610119952876,0.0735,40507.0,40494.0,0.0002]
[1610119953078,1.11454,40508.0,40496.0,0.0002]
[1610119953377,0.0002,40507.0,40476.0,0.0002]
[1610119953579,3.168,40504.0,40476.0,0.0002]
[1610119953776,0.0002,40502.0,40474.0,0.0002]
[1610119954277,0.0002,40502.0,40459.0,2.36051823]
[1610119954278,0.13632608,40475.0,40459.0,2.36051823]
[1610119954478,0.22811608,40475.0,40460.0,0.0002]
[1610119954677,0.22811608,40475.0,40452.0,2.35866841]
[1610119954678,0.0002,40474.0,40452.0,2.35866841]
[1610119954879,0.0002,40474.0,40454.0,0.00042494]
[1610119955181,3.168,40504.0,40450.0,2.35913017]
[1610119955679,0.0002,40503.0,40453.0,2.35650477]
[1610119955879,0.0002,40503.0,40451.0,0.00042497]
[1610119955880,0.0002,40503.0,40455.0,2.35649744]
[1610119956080,0.0002,40503.0,40455.0,2.48178744]
[1610119956280,0.13632608,40489.0,40488.0,0.13632608]
[1610119956580,0.22371608,40489.0,40488.0,0.13632608]
[1610119956880,0.22371608,40489.0,40477.0,0.0002]
[1610119957280,3.2226,40488.0,40459.0,0.0002]
[1610119957480,0.0002,40487.0,40457.0,0.0002]
[1610119957879,0.0002,40487.0,40444.0,2.35449909]
[1610119958178,0.13632608,40485.0,40470.0,0.13632608]
[1610119958381,0.08739,40489.0,40470.0,0.13632608]
[1610119958579,0.0002,40488.0,40471.0,0.0002]
[1610119958783,0.0002,40488.0,40441.0,0.0893]
[1610119958784,0.0002,40488.0,40447.0,2.35320233]
[1610119959279,0.0002,40488.0,40449.0,0.0002]
[1610119959479,0.0002,40488.0,40442.0,2.35208221]
[1610119959681,0.0002,40488.0,40441.0,0.0893]
[1610119959682,1.0,40457.0,40443.0,0.0002]
[1610119959880,0.0002,40456.0,40442.0,0.0002]
[1610119960094,0.63265834,40457.0,40442.0,0.0002]
[1610119960281,0.08446,40457.0,40456.0,0.13632608]
[1610119960481,0.08446,40457.0,40442.0,0.0002]
[1610119960680,0.0002,40456.0,40437.0,0.0002]
[1610119960881,0.0002,40456.0,40435.0,2.35102115]
[1610119961080,0.0002,40456.0,40436.0,0.0002]
[1610119961481,0.0002,40456.0,40432.0,0.0002]
[1610119961882,0.0002,40456.0,40424.0,2.45668849]
[1610119962081,0.0002,40456.0,40425.0,0.0002]
[1610119962382,0.08446,40457.0,40424.0,2.45668849]
[1610119962383,0.08446,40457.0,40424.0,0.10672]
[1610119962584,0.08446,40457.0,40445.0,0.0002]
[1610119962585,3.9383,40452.0,40445.0,0.0002]
[1610119962783,3.9383,40452.0,40414.0,2.64371455]
[1610119962784,0.0002,40451.0,40420.0,0.0002]
[1610119963083,0.0002,40451.0,40415.0,0.0002]
[1610119963585,0.0002,40451.0,40402.0,0.0002]
[1610119964084,3.8422,40425.0,40388.0,2.34776995]
[1610119964285,1.5002,40424.0,40388.0,2.34776995]
[1610119964484,6.0,40403.0,40399.0,0.0002]
[1610119964684,0.0002,40402.0,40379.0,0.0002]
[1610119964884,5.81437765,40403.0,40379.0,0.0002]
[1610119965083,0.11598,40403.0,40379.0,0.0002]
[1610119965487,0.0002,40402.0,40364.0,0.0002]
[1610119965784,0.0002,40402.0,40352.0,0.0002]
[1610119965984,0.0173,40397.0,40349.0,0.0002]
[1610119966184,0.0173,40397.0,40348.0,2.3399421]
[1610119966185,0.0173,40397.0,40347.0,2.33992983]
[1610119966486,0.0173,40397.0,40343.0,2.48617544]
[1610119966487,0.0002,40396.0,40377.0,0.13632608]
[1610119966684,0.0002,40396.0,40378.0,0.0002]
[1610119967485,0.0741,40395.0,40378.0,0.0002]
[1610119967887,0.0002,40394.0,40340.0,0.09839]
[1610119968087,0.09403,40394.0,40341.0,0.0002]
[1610119968289,0.13632608,40375.0,40351.0,0.13632608]
[1610119968489,0.21614608,40375.0,40351.0,0.13632608]
[1610119968789,0.0002,40374.0,40352.0,0.0002]
[1610119969289,0.0734,40374.0,40352.0,0.0002]
[1610119969490,0.0002,40373.0,40352.0,0.0002]
[1610119970090,3.8212,40368.0,40352.0,0.0002]
[1610119970290,3.8212,40368.0,40340.0,0.09839]
[1610119970291,0.13632608,40353.0,40341.0,0.0002]
[1610119970692,0.09082,40361.0,40340.0,0.09839]
[1610119970891,0.09082,40361.0,40359.0,0.0002]
[1610119971094,0.09082,40361.0,40338.0,0.09978]
[1610119971593,2.7826,40350.0,40338.0,0.09978]
[1610119971793,0.12498,40350.0,40339.0,0.0002]
[1610119972092,3.3982,40348.0,40312.0,0.08901]
[1610119972292,0.13632608,40313.0,40312.0,0.08901]
[1610119972490,0.13612608,40313.0,40312.0,0.08901]
[1610119972891,0.20972608,40313.0,40273.0,2.31237112]
[1610119973093,0.20972608,40313.0,40258.0,2.30606327]
[1610119973393,0.13612608,40313.0,40274.0,0.0002]
[1610119973793,0.13612608,40313.0,40243.0,2.59344234]
[1610119973794,0.0002,40312.0,40249.0,0.09752]
[1610119973997,0.13612608,40313.0,40255.0,0.0002]
[1610119974197,0.08206,40318.0,40249.0,0.09752]
[1610119974496,0.0002,40323.0,40263.0,0.0002]
[1610119974695,1.13632608,40344.0,40263.0,0.0002]
[1610119974696,1.0,40344.0,40263.0,0.09304]
[1610119974996,0.0002,40325.0,40267.0,2.8246]
[1610119975298,3.4686,40386.0,40267.0,2.8246]
[1610119975299,3.4686,40386.0,40273.0,1.0]
[1610119975498,0.0002,40341.0,40281.0,0.0002]
[1610119975797,0.0002,40341.0,40302.0,2.829]
[1610119975994,3.5984,40432.0,40302.0,2.829]
[1610119976297,0.0002,40360.0,40359.0,0.13632608]
[1610119976598,0.09981,40390.0,40359.0,0.13612608]
[1610119976796,0.09981,40390.0,40359.0,0.25941608]
[1610119977197,0.0002,40389.0,40360.0,0.0002]
[1610119977595,0.08074,40417.0,40360.0,0.0002]
[1610119977797,0.08074,40417.0,40359.0,0.12329]
[1610119977995,0.14136,40397.0,40359.0,0.12329]
[1610119978194,0.14136,40397.0,40334.0,1.0]
[1610119978195,2.9703,40375.0,40334.0,1.0]
[1610119978395,0.13632608,40360.0,40335.0,0.0002]
[1610119978602,3.9249,40354.0,40335.0,0.0002]
[1610119978997,0.0002,40353.0,40335.0,0.0002]
[1610119979298,3.9249,40354.0,40298.0,0.0002]
[1610119979696,0.0752,40353.0,40298.0,0.0002]
[1610119979897,3.9249,40354.0,40304.0,0.0002]
[1610119980096,3.9249,40354.0,40304.0,0.08148]
[1610119980298,0.13632608,40327.0,40325.0,0.13632608]
[1610119980598,0.0954,40334.0,40325.0,0.13632608]
[1610119980798,0.0954,40334.0,40333.0,0.0002]
[1610119981601,0.0002,40347.0,40333.0,0.0002]
[1610119981800,3.9249,40354.0,40325.0,0.13632608]
[1610119981999,3.9249,40354.0,40291.0,0.11481]
[1610119982406,0.13632608,40306.0,40304.0,0.0002]
[1610119982600,0.23868608,40306.0,40304.0,0.0002]
[1610119982899,0.0002,40305.0,40258.0,0.0002]
[1610119983099,1.0002,40305.0,40283.0,1.0]
[1610119983299,0.0002,40304.0,40284.0,0.0002]
[1610119984404,0.13632608,40285.0,40284.0,0.0002]
[1610119984601,0.22925608,40285.0,40283.0,1.0]
[1610119984803,0.09293,40285.0,40283.0,0.3743]
[1610119985003,0.467,40284.0,40283.0,0.3743]
[1610119985204,0.467,40284.0,40277.0,0.0002]
[1610119985404,0.0002,40283.0,40186.0,2.26036224]
[1610119985602,0.0128,40283.0,40223.0,0.0002]
[1610119985803,4.0843,40259.0,40221.0,0.0002]
[1610119986004,4.1788,40259.0,40171.0,2.2610643]
[1610119986202,0.0002,40258.0,40221.0,0.0002]
[1610119986411,4.1788,40259.0,40165.0,5.33788993]
[1610119986704,0.0945,40259.0,40206.0,0.0002]
[1610119987005,0.0945,40259.0,40165.0,0.1265]
[1610119987006,0.0002,40236.0,40200.0,0.0002]
[1610119987303,0.12482,40236.0,40200.0,0.0002]
[1610119987503,0.0002,40235.0,40200.0,0.0002]
[1610119988403,0.13632608,40207.0,40200.0,0.0002]
[1610119988604,0.5153,40206.0,40199.0,0.11758]
[1610119988802,0.5151,40206.0,40199.0,0.11758]
[1610119989006,0.12462,40236.0,40220.0,0.007053]
[1610119989305,0.0002,40235.0,40221.0,0.0002]
[1610119989506,2.8941,40208.0,40199.0,0.11758]
[1610119989704,0.11721,40217.0,40199.0,0.11758]
[1610119989907,0.11721,40217.0,40202.0,0.0002]
[1610119990105,0.0002,40216.0,40200.0,0.0002]
[1610119990305,3.7855,40204.0,40200.0,0.0002]
[1610119990605,0.13612608,40201.0,40124.0,3.7821]
[1610119991008,3.87302,40204.0,40124.0,3.7821]
[1610119991205,0.0002,40200.0,40151.0,0.0002]
[1610119991406,3.87302,40204.0,40124.0,1.57104]
[1610119991606,0.0002,40203.0,40124.0,0.11013]
[1610119992110,0.0002,40189.0,40129.0,0.0002]
[1610119992408,0.4933,40188.0,40124.0,0.11013]
[1610119993011,0.0002,40184.0,40124.0,0.11033]
[1610119993309,0.10787,40184.0,40124.0,0.11033]
[1610119993511,0.10787,40184.0,40124.0,0.11013]
[1610119993711,1.0,40172.0,40124.0,0.11013]
[1610119993914,0.0002,40171.0,40125.0,0.0002]
[1610119994311,0.5462,40170.0,40158.0,0.13632608]
[1610119994614,3.4068,40163.0,40125.0,0.0002]
[1610119994810,0.0002,40162.0,40125.0,0.0002]
[1610119996414,0.0002,40162.0,40161.0,0.13632608]
[1610119996712,0.0002,40162.0,40135.0,0.09286]
[1610119996914,0.0002,40162.0,40147.0,0.0002]
[1610119997214,0.0002,40162.0,40136.0,0.0002]
[1610119997614,0.0002,40162.0,40124.0,0.11013]
[1610119997817,0.0002,40162.0,40101.0,4.0368]
[1610119998014,0.0002,40162.0,40125.0,0.0002]
[1610119998234,1.0,40175.0,40125.0,0.0002]
[1610119998235,1.0,40175.0,40125.0,0.12176]
[1610119998422,0.0002,40174.0,40125.0,0.12156]
[1610119998624,0.0002,40174.0,40126.0,0.0002]
[1610119999919,0.0002,40183.0,40126.0,0.0002]
[1610120000520,0.0002,40183.0,40179.0,0.13632608]
[1610120000721,0.10787,40184.0,40179.0,0.13632608]
[1610120000919,0.0002,40190.0,40179.0,0.13632608]
[1610120001120,0.11697,40193.0,40179.0,0.13652608]
[1610120001420,0.11677,40193.0,40165.0,0.11533]
[1610120001621,0.0002,40192.0,40175.0,0.0002]
[1610120001819,0.0002,40192.0,40125.0,0.12156]
[1610120002023,0.09168,40193.0,40125.0,0.12156]
[1610120002226,3.9659,40170.0,40137.0,0.0002]
[1610120002423,0.13632608,40138.0,40132.0,0.13632608]
[1610120002626,0.13632608,40138.0,40126.0,0.0002]
[1610120002824,0.13632608,40138.0,40054.0,4.1227]
[1610120003024,0.0002,40138.0,40110.0,0.0002]
[1610120003625,0.0002,40137.0,40110.0,0.0002]
[1610120004425,0.0002,40137.0,40125.0,0.13632608]
[1610120004628,0.0002,40137.0,40110.0,0.0002]
[1610120004629,0.0902,40145.0,40110.0,0.0002]
[1610120004830,0.0002,40144.0,40110.0,0.0002]
[1610120005928,0.5526,40142.0,40110.0,0.0002]
[1610120006229,0.0002,40141.0,40110.0,0.0002]
[1610120006536,0.13632608,40112.0,40110.0,0.0002]
[1610120006734,0.26160608,40112.0,40106.0,0.13632608]
[1610120006932,0.26160608,40112.0,40084.0,0.08629]
[1610120007337,0.26160608,40112.0,40104.0,0.0002]
[1610120008142,0.12548,40112.0,40104.0,0.0002]
[1610120008430,0.13632608,40110.0,40104.0,0.0002]
[1610120010133,0.13632608,40110.0,40100.0,0.1002]
[1610120010343,3.1387,40103.0,40100.0,0.1002]
[1610120010534,0.13632608,40101.0,40100.0,0.1]
[1610120010934,3.25865,40103.0,40100.0,0.1]
[1610120011233,0.11995,40103.0,40100.0,0.1]
[1610120012136,0.0002,40111.0,40100.0,0.1]
[1610120012335,0.0002,40114.0,40100.0,0.1002]
[1610120012539,0.0002,40144.0,40113.0,0.13632608]
[1610120012735,0.0002,40144.0,40113.0,0.26021608]
[1610120012935,0.0002,40144.0,40114.0,0.0002]
[1610120013136,0.0002,40169.0,40114.0,0.0002]
[1610120014635,0.13632608,40176.0,40168.0,0.13612608]
[1610120015241,0.13632608,40176.0,40136.0,0.08206]
[1610120015436,0.0002,40175.0,40137.0,0.0002]
[1610120015856,0.0002,40175.0,40113.0,0.12389]
[1610120015857,0.22760608,40176.0,40122.0,0.0002]
[1610120016036,0.22760608,40176.0,40113.0,0.12389]
[1610120016240,0.0003038,40175.0,40122.0,0.0002]
[1610120016437,0.13632608,40160.0,40148.0,0.13632608]
[1610120016638,0.24504608,40160.0,40100.0,0.1]
[1610120017036,0.0002,40159.0,40101.0,0.0002]
[1610120017638,0.00050392,40159.0,40101.0,0.0002]
[1610120017839,0.0002,40158.0,40101.0,0.0002]
[1610120018539,0.0002,40158.0,40121.0,0.13632608]
[1610120018939,0.0002,40158.0,40122.0,0.0002]
[1610120019543,0.0002,40158.0,40100.0,0.1]
[1610120019740,0.0002,40158.0,40101.0,0.0002]
[1610120020441,0.10872,40160.0,40101.0,0.0002]
[1610120020442,0.13632608,40110.0,40107.0,0.13632608]
[1610120020743,0.26118608,40110.0,40100.0,0.1]
[1610120021140,0.26118608,40110.0,39993.0,0.01957831]
[1610120021343,0.0002,40108.0,40094.0,0.0002]
[1610120021545,0.0002,40109.0,40063.0,0.0002]
[1610120021740,1.0,40096.0,40063.0,0.0002]
[1610120021945,0.0002,40095.0,40063.0,0.0002]
[1610120022443,0.0002,40095.0,40091.0,0.13632608]
[1610120022642,1.07814,40096.0,40087.0,0.0002]
[1610120022844,1.07814,40096.0,40040.0,0.10175]
[1610120023045,0.0002,40095.0,40063.0,0.0002]
[1610120024546,0.13632608,40064.0,40063.0,0.13652608]
[1610120024846,0.25404608,40064.0,40063.0,0.13632608]
[1610120025148,0.11792,40064.0,40063.0,0.13632608]
[1610120025749,0.0002,40071.0,40057.0,0.0002]
[1610120026046,0.09441,40064.0,40039.0,0.10424]
[1610120026248,0.09441,40064.0,40057.0,0.0002]
[1610120026551,0.13632608,40063.0,40039.0,0.10424]
[1610120026747,4.0134,40058.0,40039.0,0.10424]
[1610120027047,0.02,40062.0,39993.0,0.01957831]
[1610120027347,0.0002,40057.0,40002.0,0.0002]
[1610120027549,0.0002,40061.0,40002.0,0.0002]
[1610120027852,3.9411,40003.0,40002.0,0.0002]
[1610120028045,3.9409,40003.0,40001.0,0.15668]
[1610120028348,3.9409,40003.0,39882.0,1.18565191]
[1610120028548,0.13632608,39919.0,39887.0,0.00021716]
[1610120028748,1.40720608,39951.0,39883.0,0.00021719]
[1610120028946,0.08163,40022.0,39888.0,0.0002]
[1610120029149,3.5792,39924.0,39888.0,0.0002]
[1610120029349,3.5792,39924.0,39883.0,0.1002]
[1610120029647,1.0,39920.0,39884.0,0.0002]
[1610120029851,1.0,39920.0,39877.0,0.01957831]
[1610120030048,0.0002,39919.0,39877.0,0.01957831]
[1610120030447,3.56002608,39878.0,39877.0,0.01957831]
[1610120030650,3.66293608,39878.0,39877.0,0.01957831]
[1610120030851,3.2048411,39878.0,39877.0,0.01957831]
[1610120031349,3.06851502,39878.0,39871.0,0.0002]
[1610120031649,3.06851502,39878.0,39819.0,0.01957831]
[1610120031650,4.06851502,39878.0,39819.0,0.01957831]
[1610120031849,1.10291,39878.0,39819.0,0.01957831]
[1610120032152,3.4043,39869.0,39840.0,0.0002]
[1610120032349,0.08697,39869.0,39840.0,0.0002]
[1610120032554,3.6907,39851.0,39840.0,0.0002]
[1610120032750,0.0002,39861.0,39847.0,0.0002]
[1610120032952,0.0002,39861.0,39558.0,3.91547337]
[1610120032953,3.4402,39837.0,39818.0,0.1089]
[1610120033254,0.0751,39836.0,39818.0,0.1089]
[1610120033453,0.0002,39835.0,39819.0,0.0002]
[1610120033950,0.0002,39840.0,39819.0,0.0002]
[1610120034150,0.0002,39853.0,39819.0,0.0002]
[1610120034552,0.0002,39853.0,39827.0,0.13632608]
[1610120034751,0.0002,39853.0,39828.0,0.0002]
[1610120036353,0.0002,39853.0,39828.0,0.09303]
[1610120036553,0.0002,39853.0,39829.0,0.0002]
[1610120037557,3.4099,39854.0,39809.0,0.11563]
[1610120037757,0.0002,39853.0,39810.0,0.0002]
[1610120038060,0.0173,39818.0,39810.0,0.0002]
[1610120038256,4.031,39814.0,39809.0,0.11563]
[1610120038456,0.13632608,39811.0,39809.0,0.11543]
[1610120038857,4.031,39814.0,39809.0,0.11543]
[1610120039458,0.0763,39813.0,39809.0,0.11543]
[1610120039659,0.0763,39813.0,39804.0,0.0002]
[1610120039959,6.0,39810.0,39531.0,0.4764]
[1610120040258,0.0002,39783.0,39723.0,0.0002]
[1610120040863,0.4042,39783.0,39723.0,0.0002]
[1610120041059,0.4042,39783.0,39626.0,3.8844]
[1610120041060,0.0002,39774.0,39714.0,0.0002]
[1610120041262,2.9976,39776.0,39723.0,0.0002]
[1610120041463,0.0002,39772.0,39723.0,0.10419]
[1610120041662,0.0002,39809.0,39749.0,0.0002]
[1610120041863,0.0002,39770.0,39749.0,0.08035]
[1610120042161,3.2979,39776.0,39723.0,0.10419]
[1610120042162,0.0002,39775.0,39750.0,0.0002]
[1610120042361,0.0002,39775.0,39750.0,0.07801]
[1610120042561,0.13632608,39751.0,39750.0,0.07801]
[1610120042766,0.0002,39775.0,39751.0,0.0002]
[1610120044066,0.0002,39801.0,39751.0,0.0002]
[1610120044263,0.0002,39806.0,39751.0,0.0002]
[1610120044462,0.13632608,39788.0,39751.0,0.0002]
[1610120044865,0.0002,39787.0,39751.0,0.0002]
[1610120046274,0.0743,39786.0,39751.0,0.0002]
[1610120046474,0.0002,39785.0,39784.0,0.13632608]
[1610120046868,1.0,39810.0,39784.0,0.13612608]
[1610120047067,1.0,39810.0,39784.0,0.23604608]
[1610120047470,1.0,39810.0,39785.0,0.0002]
[1610120047471,0.0002,39809.0,39785.0,0.0002]
[1610120048170,3.0255,39889.0,39785.0,0.0002]
[1610120048371,0.0002,39817.0,39785.0,0.0002]
[1610120048670,0.0002,39817.0,39816.0,0.13632608]
[1610120048870,0.08488,39898.0,39816.0,0.25193608]
[1610120049670,0.0002,39874.0,39823.0,0.0002]
[1610120049870,0.0002,39895.0,39835.0,0.0002]
[1610120050070,0.0002,39886.0,39835.0,0.10152]
[1610120050272,0.0002,39886.0,39841.0,3.6868]
[1610120050573,0.10953,39955.0,39835.0,0.10152]
[1610120050574,0.10953,39955.0,39953.0,0.13612608]
[1610120050770,0.10953,39955.0,39937.0,0.11651]
[1610120050970,0.10953,39955.0,39910.0,4.1446]